fUST/lending_fUST_20240908
["ID","MTS","AMOUNT","RATE_DAILY","PERIOD"]
[337549619,1725805921842,-629.21,0.00055342,120]
[337549620,1725805921853,-647.52,0.00055342,120]
[337549621,1725805921862,-500.0,0.00055342,120]
[337549622,1725805921871,-883.64,0.00055342,120]
[337549623,1725805921881,-500.0,0.00055342,120]
[337549624,1725805921890,-500.0,0.00055342,120]
[337549625,1725805921900,-500.0,0.00055342,120]
[337549626,1725805921910,-500.0,0.00055342,120]
[337549627,1725805921919,-695.11,0.00055342,120]
[337549628,1725805921929,-539.71,0.00055342,120]
[337549629,1725805921939,-1337.0,0.00055342,120]
[337549630,1725805921949,-500.0,0.00055342,120]
[337549631,1725805921958,-500.0,0.00055342,120]
[337549632,1725805921968,-527.84119167,0.00055342,120]
[337549633,1725805921978,-1005.43,0.00055342,120]
[337549634,1725805921988,-519.26,0.00055342,120]
[337549635,1725805921997,-500.0,0.00055342,120]
[337549636,1725805922007,-469.74183836,0.00055342,120]
[337549637,1725805922016,-500.0,0.00055342,120]
[337549638,1725805922025,-500.0,0.00055342,120]
[337549639,1725805922035,-500.0,0.00055342,120]
[337549640,1725805922044,-500.0,0.00055342,120]
[337549641,1725805922054,-500.0,0.00055342,120]
[337549642,1725805922063,-500.0,0.00055342,120]
[337549643,1725805922072,-777.71,0.00055342,120]
[337549644,1725805922082,-536.44,0.00055342,120]
[337549645,1725805922092,-500.0,0.00055342,120]
[337549646,1725805922101,-500.0,0.00055342,120]
[337549647,1725805922113,-500.0,0.00055342,120]
[337549648,1725805922122,-395.06,0.00055342,120]
[337549649,1725805922131,-500.0,0.00055342,120]
[337549650,1725805922141,-500.0,0.00055342,120]
[337549651,1725805922151,-500.0,0.00055342,120]
[337549652,1725805922160,-1035.22,0.00055342,120]
[337549653,1725805922169,-500.0,0.00055342,120]
[337549654,1725805922177,-500.0,0.00055342,120]
[337549655,1725805922187,-500.0,0.00055342,120]
[337549656,1725805922196,-500.0,0.00055342,120]
[337549657,1725805922205,-500.0,0.00055342,120]
[337549658,1725805922214,-500.0,0.00055342,120]
[337549659,1725805922224,-500.0,0.00055342,120]
[337549660,1725805922233,-754.38,0.00055342,120]
[337549661,1725805922243,-500.0,0.00055342,120]
[337549662,1725805922251,-1120.52,0.00055342,120]
[337549663,1725805922260,-2095.23,0.00055342,120]
[337549664,1725805922269,-500.0,0.00055342,120]
[337549665,1725805922278,-778.94,0.00055342,120]
[337549666,1725805922287,-500.0,0.00055342,120]
[337549667,1725805922295,-500.0,0.00055342,120]
[337549668,1725805922305,-571.63,0.00055342,120]
[337549669,1725805922314,-1114.92,0.00055342,120]
[337549670,1725805922323,-675.76,0.00055342,120]
[337549671,1725805922332,-500.0,0.00055342,120]
[337549672,1725805922341,-783.87,0.00055342,120]
[337549673,1725805922350,-500.0,0.00055342,120]
[337549674,1725805922360,-433.0646584,0.00055342,120]
[337549675,1725805922370,-722.92,0.00055342,120]
[337549676,1725805922379,-500.0,0.00055342,120]
[337549677,1725805922388,-500.0,0.00055342,120]
[337549678,1725805922397,-500.0,0.00055342,120]
[337549679,1725805922407,-1000.0,0.00055342,30]
[337549680,1725805922416,-500.0,0.00055342,120]
[337549681,1725805922425,-500.0,0.00055342,120]
[337549682,1725805922435,-500.0,0.00055342,120]
[337549683,1725805922444,-500.0,0.00055342,120]
[337549684,1725805922453,-1071.72,0.00055342,120]
[337549685,1725805922463,-2383.56,0.00055342,120]
[337549686,1725805922472,-500.0,0.00055342,120]
[337549687,1725805922481,-500.0,0.00055342,120]
[337549688,1725805922490,-500.0,0.00055342,120]
[337549689,1725805922499,-500.0,0.00055342,120]
[337549690,1725805922508,-574.57,0.00055342,120]
[337549691,1725805922517,-1141.39,0.00055342,120]
[337549692,1725805922526,-1569.13,0.00055342,120]
[337549693,1725805922536,-500.0,0.00055342,120]
[337549694,1725805922545,-285.58,0.00055342,7]
[337549695,1725805922555,-1441.77,0.00055342,120]
[337549696,1725805922564,-500.0,0.00055342,120]
[337549697,1725805922573,-1350.66,0.00055342,120]
[337549698,1725805922582,-575.01,0.00055342,120]
[337549699,1725805922592,-500.0,0.00055342,120]
[337549700,1725805922603,-1422.35,0.00055342,120]
[337549701,1725805922614,-500.0,0.00055342,120]
[337549702,1725805922625,-500.0,0.00055342,120]
[337549703,1725805922635,-500.0,0.00055342,120]
[337549704,1725805922644,-500.0,0.00055342,120]
[337549705,1725805922655,-500.0,0.00055342,120]
[337549706,1725805922665,-500.0,0.00055342,120]
[337549707,1725805922674,-500.0,0.00055342,120]
[337549708,1725805922683,-906.85,0.00055342,120]
[337549709,1725805922692,-525.2308032,0.00055342,120]
[337549710,1725805922702,-597.88,0.00055342,120]
[337549711,1725805922711,-2349.55,0.00055342,120]
[337549712,1725805922720,-500.0,0.00055342,120]
[337549713,1725805922729,-500.0,0.00055342,120]
[337549714,1725805922739,-500.0,0.00055342,120]
[337549715,1725805922748,-500.0,0.00055342,120]
[337549716,1725805922757,-968.65,0.00055342,120]
[337549717,1725805922767,-754.03,0.00055342,120]
[337549718,1725805922777,-1888.16,0.00055342,120]
[337549719,1725805922786,-500.0,0.00055342,120]
[337549720,1725805922796,-500.0,0.00055342,120]
[337549721,1725805922805,-547.56,0.00055342,120]
[337549722,1725805922815,-500.0,0.00055342,120]
[337549723,1725805922824,-500.0,0.00055342,120]
[337549724,1725805922836,-2284.18,0.00055342,120]
[337549725,1725805922846,-500.0,0.00055342,120]
[337549726,1725805922856,-500.0,0.00055342,120]
[337549727,1725805922865,-500.0,0.00055342,120]
[337549728,1725805922875,-500.0,0.00055342,120]
[337549729,1725805922884,-3590.46,0.00055342,120]
[337549730,1725805922894,-500.0,0.00055342,120]
[337549731,1725805922903,-500.0,0.00055342,120]
[337549732,1725805922913,-500.0,0.00055342,7]
[337549733,1725805922922,-1819.09,0.00055342,120]
[337549734,1725805922931,-500.0,0.00055342,120]
[337549735,1725805922941,-500.0,0.00055342,120]
[337549736,1725805922951,-500.0,0.00055342,120]
[337549737,1725805922960,-1728.98,0.00055342,120]
[337549738,1725805922970,-500.0,0.00055342,2]
[337549739,1725805922979,-823.39,0.00055342,120]
[337549740,1725805922988,-530.76998462,0.00055342,120]
[337549741,1725805922997,-500.0,0.00055342,120]
[337549742,1725805923006,-316.40357059,0.00055342,120]
[337549743,1725805923015,-500.0,0.00055342,120]
[337549744,1725805923025,-500.0,0.00055342,120]
[337549745,1725805923034,-554.96,0.00055342,120]
[337549746,1725805923043,-500.0,0.00055342,120]
[337549747,1725805923053,-3569.14,0.00055342,120]
[337549748,1725805923063,-1143.59,0.00055342,120]
[337549749,1725805923073,-1919.68,0.00055342,120]
[337549750,1725805923082,-500.0,0.00055342,120]
[337549751,1725805923092,-500.0,0.00055342,120]
[337549752,1725805923101,-500.0,0.00055342,120]
[337549753,1725805923111,-3136.53,0.00055342,120]
[337549754,1725805923120,-500.0,0.00055342,120]
[337549755,1725805923133,-535.66,0.00055342,120]
[337549756,1725805923142,-500.0,0.00055342,120]
[337549757,1725805923152,-500.0,0.00055342,120]
[337549758,1725805923161,-1239.09,0.00055342,120]
[337549759,1725805923170,-500.0,0.00055342,120]
[337549760,1725805923181,-500.0,0.00055342,120]
[337549761,1725805923191,-816.25,0.00055342,120]
[337549762,1725805923200,-500.0,0.00055342,120]
[337549763,1725805923211,-500.0,0.00055342,120]
[337549764,1725805923220,-500.0,0.00055342,120]
[337549765,1725805923229,-500.0,0.00055342,120]
[337549766,1725805923239,-735.13,0.00055342,7]
[337549767,1725805923249,-500.0,0.00055342,120]
[337549768,1725805923259,-524.40524086,0.00055342,120]
[337549769,1725805923268,-544.41,0.00055342,120]
[337549770,1725805923278,-500.0,0.00055342,120]
[337549771,1725805923288,-702.53,0.00055342,120]
[337549772,1725805923298,-2422.66,0.00055342,120]
[337549773,1725805923309,-651.97,0.00055342,120]
[337549774,1725805923319,-912.86,0.00055342,120]
[337549775,1725805923329,-500.0,0.00055342,120]
[337549776,1725805923339,-500.0,0.00055342,120]
[337549777,1725805923349,-500.0,0.00055342,120]
[337549778,1725805923362,-500.0,0.00055342,120]
[337549779,1725805923371,-2604.32,0.00055342,30]
[337549780,1725805923380,-712.44,0.00055342,120]
[337549781,1725805923390,-500.0,0.00055342,120]
[337549782,1725805923400,-2383.05,0.00055342,120]
[337549783,1725805923409,-1268.01,0.00055342,120]
[337549784,1725805923419,-500.0,0.00055342,120]
[337549785,1725805923428,-500.0,0.00055342,120]
[337549786,1725805923438,-500.0,0.00055342,120]
[337549787,1725805923447,-500.0,0.00055342,120]
[337549788,1725805923456,-500.0,0.00055342,20]
[337549789,1725805923465,-500.0,0.00055342,120]
[337549790,1725805923475,-599.83,0.00055342,120]
[337549791,1725805923484,-500.0,0.00055342,120]
[337549792,1725805923493,-500.0,0.00055342,120]
[337549793,1725805923503,-501.46582974,0.00055342,120]
[337549794,1725805923513,-1639.78,0.00055342,120]
[337549795,1725805923523,-706.48,0.00055342,120]
[337549796,1725805923533,-500.0,0.00055342,120]
[337549797,1725805923543,-500.0,0.00055342,120]
[337549798,1725805923552,-500.0,0.00055342,120]
[337549799,1725805923562,-508.2,0.00055342,120]
[337549800,1725805923571,-500.0,0.00055342,120]
[337549801,1725805923580,-500.0,0.00055342,120]
[337549802,1725805923590,-500.0,0.00055342,120]
[337549803,1725805923599,-549.45,0.00055342,120]
[337549804,1725805923611,-500.0,0.00055342,120]
[337549805,1725805923620,-500.0,0.00055342,120]
[337549806,1725805923629,-500.0,0.00055342,120]
[337549807,1725805923639,-1099.95,0.00055342,120]
[337549808,1725805923648,-500.0,0.00055342,120]
[337549809,1725805923659,-500.0,0.00055342,120]
[337549810,1725805923669,-2965.66,0.00055342,120]
[337549811,1725805923678,-500.0,0.00055342,120]
[337549812,1725805923688,-500.0,0.00055342,120]
[337549813,1725805923697,-500.0,0.00055342,120]
[337549814,1725805923707,-1019.13,0.00055342,120]
[337549815,1725805923716,-500.58,0.00055342,120]
[337549816,1725805923726,-500.0,0.00055342,120]
[337549817,1725805923736,-500.0,0.00055342,120]
[337549818,1725805923745,-500.0,0.00055342,120]
[337549819,1725805923755,-500.0,0.00055342,120]
[337549820,1725805923765,-500.0,0.00055342,120]
[337549821,1725805923775,-500.0,0.00055342,120]
[337549822,1725805923784,-500.0,0.00055342,120]
[337549823,1725805923794,-536.46,0.00055342,120]
[337549824,1725805923803,-500.0,0.00055342,120]
[337549825,1725805923813,-171.80242988,0.00055342,120]
[337549826,1725805923822,-956.94,0.00055342,120]
[337549827,1725805923832,-503.82799804,0.00055342,120]
[337549828,1725805923843,-2614.93,0.00055342,120]
[337549829,1725805923852,-1258.91,0.00055342,30]
[337549830,1725805923863,-936.51,0.00055342,120]
[337549831,1725805923872,-750.82,0.00055342,120]
[337549832,1725805923882,-500.0,0.00055342,120]
[337549833,1725805923892,-500.0,0.00055342,120]
[337549834,1725805923903,-500.0,0.00055342,120]
[337549835,1725805923913,-500.0,0.00055342,120]
[337549836,1725805923922,-500.96,0.00055342,120]
[337549837,1725805923932,-500.0,0.00055342,120]
[337549838,1725805923942,-809.49,0.00055342,120]
[337549839,1725805923952,-1610.56,0.00055342,2]
[337549840,1725805923961,-500.0,0.00055342,120]
[337549841,1725805924138,-2330.31,0.00055342,120]
[337549842,1725805924149,-500.0,0.00055342,120]
[337549843,1725805924159,-919.1,0.00055342,120]
[337549844,1725805924171,-713.82,0.00055342,120]
[337549845,1725805924180,-567.57124357,0.00055342,120]
[337549846,1725805924190,-1348.0,0.00055342,120]
[337549847,1725805924199,-1215.29,0.00055342,120]
[337549848,1725805924210,-500.0,0.00055342,120]
[337549849,1725805924221,-500.0,0.00055342,120]
[337549850,1725805924231,-500.0,0.00055342,120]
[337549851,1725805924241,-500.0,0.00055342,30]
[337549852,1725805924251,-500.0,0.00055342,120]
[337549853,1725805924261,-593.33737463,0.00055342,120]
[337549854,1725805924271,-500.0,0.00055342,120]
[337549855,1725805924281,-500.0,0.00055342,120]
[337549856,1725805924291,-8647.46,0.00055342,120]
[337549857,1725805924301,-500.0,0.00055342,120]
[337549858,1725805924312,-1268.96,0.00055342,120]
[337549859,1725805924322,-905.01,0.00055342,120]
[337549860,1725805924332,-500.0,0.00055342,120]
[337549861,1725805924344,-500.0,0.00055342,120]
[337549862,1725805924353,-1095.72,0.00055342,120]
[337549863,1725805924367,-500.0,0.00055342,120]
[337549864,1725805924377,-419.46628434,0.00055342,120]
[337549865,1725805924386,-500.0,0.00055342,120]
[337549866,1725805924396,-500.0,0.00055342,120]
[337549867,1725805924406,-500.0,0.00055342,120]
[337549868,1725805924416,-375.75822535,0.00055342,120]
[337549869,1725805924425,-2723.96,0.00055342,120]
[337549870,1725805924435,-3738.38,0.00055342,120]
[337549871,1725805924446,-1760.49,0.00055342,120]
[337549872,1725805924456,-500.0,0.00055342,120]
[337549873,1725805924466,-500.0,0.00055342,120]
[337549874,1725805924476,-500.0,0.00055342,120]
[337549875,1725805924487,-1652.87,0.00055342,120]
[337549876,1725805924496,-1533.73,0.00055342,7]
[337549877,1725805924505,-500.0,0.00055342,120]
[337549878,1725805924515,-935.82,0.00055342,120]
[337549879,1725805924524,-500.0,0.00055342,2]
[337549880,1725805924534,-990.57,0.00055342,120]
[337549881,1725805924544,-634.71125131,0.00055342,120]
[337549882,1725805924553,-1634.99,0.00055342,120]
[337549883,1725805924563,-500.0,0.00055342,120]
[337549884,1725805924572,-500.0,0.00055342,120]
[337549885,1725805924581,-500.0,0.00055342,120]
[337549886,1725805924591,-500.0,0.00055342,120]
[337549887,1725805924601,-561.96,0.00055342,120]
[337549888,1725805924616,-500.0,0.00055342,120]
[337549889,1725805924626,-999.0,0.00055342,120]
[337549890,1725805924636,-798.12,0.00055342,120]
[337549891,1725805924646,-500.0,0.00055342,120]
[337549892,1725805924656,-756.74,0.00055342,120]
[337549893,1725805924665,-500.0,0.00055342,120]
[337549894,1725805924675,-500.0,0.00055342,120]
[337549895,1725805924685,-500.0,0.00055342,120]
[337549896,1725805924695,-3183.67,0.00055342,120]
[337549897,1725805924704,-639.86,0.00055342,120]
[337549898,1725805924713,-500.0,0.00055342,120]
[337549899,1725805924723,-1579.24,0.00055342,120]
[337549900,1725805924732,-500.0,0.00055342,120]
[337549901,1725805924743,-1002.7,0.00055342,120]
[337549902,1725805924753,-3855.05,0.00055342,120]
[337549903,1725805924766,-500.0,0.00055342,120]
[337549904,1725805924776,-1054.78,0.00055342,120]
[337549905,1725805924786,-4259.05,0.00055342,120]
[337549906,1725805924796,-500.0,0.00055342,120]
[337549907,1725805924806,-500.0,0.00055342,120]
[337549908,1725805924816,-500.0,0.00055342,120]
[337549909,1725805924826,-500.0,0.00055342,120]
[337549910,1725805924837,-2083.33,0.00055342,120]
[337549911,1725805924848,-1317.78,0.00055342,120]
[337549912,1725805924859,-500.0,0.00055342,120]
[337549913,1725805924870,-1267.76,0.00055342,120]
[337549914,1725805924879,-500.0,0.00055342,120]
[337549915,1725805924889,-500.0,0.00055342,120]
[337549916,1725805924898,-3178.06,0.00055342,120]
[337549917,1725805924908,-500.0,0.00055342,120]
[337549918,1725805924918,-5184.01,0.00055342,120]
[337549919,1725805924927,-588.78,0.00055342,120]
[337549920,1725805924937,-535.99,0.00055342,120]
[337549921,1725805924947,-500.0,0.00055342,120]
[337549922,1725805924958,-3023.99,0.00055342,120]
[337549923,1725805924968,-500.0,0.00055342,120]
[337549924,1725805924978,-500.0,0.00055342,120]
[337549925,1725805924988,-571.74,0.00055342,120]
[337549926,1725805924999,-622.8,0.00055342,120]
[337549927,1725805925010,-1447.48,0.00055342,120]
[337549928,1725805925023,-2095.57,0.00055342,120]
[337549929,1725805925034,-500.0,0.00055342,120]
[337549930,1725805925044,-500.0,0.00055342,120]
[337549931,1725805925053,-500.0,0.00055342,120]
[337549932,1725805925063,-4027.69,0.00055342,120]
[337549933,1725805925073,-430.97745576,0.00055342,120]
[337549934,1725805925082,-2650.07,0.00055342,120]
[337549935,1725805925092,-2388.47,0.00055342,120]
[337549936,1725805925101,-674.33,0.00055342,120]
[337549937,1725805925111,-3583.25,0.00055342,120]
[337549938,1725805925121,-636.12,0.00055342,120]
[337549939,1725805925134,-2356.95,0.00055342,120]
[337549940,1725805925144,-1869.76,0.00055342,120]
[337549941,1725805925154,-3073.31,0.00055342,120]
[337549942,1725805925164,-500.0,0.00055342,120]
[337549943,1725805925175,-500.0,0.00055342,120]
[337549944,1725805925184,-500.0,0.00055342,120]
[337549945,1725805925193,-500.0,0.00055342,120]
[337549946,1725805925203,-500.0,0.00055342,120]
[337549947,1725805925213,-3853.3,0.00055342,120]
[337549948,1725805925223,-7074.82,0.00055342,120]
[337549949,1725805925232,-644.27,0.00055342,120]
[337549950,1725805925242,-102728.31,0.00055342,120]
[337549951,1725805925251,-23755.79,0.00055342,120]
[337549952,1725805925260,-500.0,0.00055342,120]
[337549953,1725805925270,-606.98,0.00055342,120]
[337549954,1725805925280,-500.0,0.00055342,120]
[337549955,1725805925290,-2449.96,0.00055342,120]
[337549956,1725805925299,-500.0,0.00055342,120]
[337549957,1725805925309,-500.0,0.00055342,60]
[337549958,1725805925319,-1564.55,0.00055342,120]
[337549959,1725805925328,-3064.33,0.00055342,120]
[337549960,1725805925338,-500.58,0.00055342,120]
[337549961,1725805925348,-1746.51,0.00055342,120]
[337549962,1725805925359,-500.0,0.00055342,120]
[337549963,1725805925369,-3749.99,0.00055342,21]
[337549964,1725805925379,-9742.51,0.00055342,120]
[337549965,1725805925390,-500.0,0.00055342,120]
[337549966,1725805925400,-13752.81,0.00055342,120]
[337549967,1725805925411,-963.77,0.00055342,120]
[337549968,1725805925421,-500.0,0.00055342,120]
[337549969,1725805925431,-703.33,0.00055342,120]
[337549970,1725805925440,-2137.02,0.00055342,120]
[337549971,1725805925450,-538.79755359,0.00055342,120]
[337549972,1725805925459,-1973.22,0.00055342,120]
[337549973,1725805925469,-500.0,0.00055342,120]
[337549974,1725805925479,-14745.27,0.00055342,120]
[337549975,1725805925489,-500.0,0.00055342,120]
[337549976,1725805925498,-500.0,0.00055342,120]
[337549977,1725805925508,-625.07135881,0.00055342,120]
[337549978,1725805925517,-5506.22,0.00055342,120]
[337549979,1725805925527,-837.11,0.00055342,120]
[337549980,1725805925537,-500.0,0.00055342,120]
[337549981,1725805925546,-2101.71,0.00055342,120]
[337549982,1725805925556,-3357.86,0.00055342,120]
[337549983,1725805925565,-1071.54,0.00055342,120]
[337549984,1725805925574,-500.0,0.00055342,120]
[337549985,1725805925584,-2112.01,0.00055342,120]
[337549986,1725805925593,-500.0,0.00055342,120]
[337549987,1725805925602,-8902.45,0.00055342,120]
[337549988,1725805925613,-500.0,0.00055342,120]
[337549989,1725805925622,-574.17,0.00055342,120]
[337549990,1725805925632,-2582.17,0.00055342,120]
[337549991,1725805925641,-500.0,0.00055342,120]
[337549992,1725805925650,-23937.12,0.00055342,120]
[337549993,1725805925659,-3412.04,0.00055342,120]
[337549994,1725805925669,-2460.34,0.00055342,120]
[337549995,1725805925678,-500.0,0.00055342,120]
[337549996,1725805925687,-1782.06,0.00055342,120]
[337549997,1725805925697,-976.47,0.00055342,120]
[337549998,1725805925706,-1276.39,0.00055342,120]
[337549999,1725805925716,-536.41301738,0.00055342,120]
[337550000,1725805925726,-500.0,0.00055342,120]
[337550001,1725805925739,-622.61139168,0.00055342,120]
[337550002,1725805925750,-500.0,0.00055342,120]
[337550003,1725805925761,-330.53966478,0.00055342,120]
[337550004,1725805925773,-500.0,0.00055342,120]
[337550005,1725805925783,-1603.97,0.00055342,120]
[337550006,1725805925793,-500.0,0.00055342,120]
[337550007,1725805925803,-500.0,0.00055342,120]
[337550008,1725805925813,-500.0,0.00055342,120]
[337550009,1725805925823,-500.0,0.00055342,120]
[337550010,1725805925832,-5806.88,0.00055342,120]
[337550011,1725805925845,-500.0,0.00055342,120]
[337550012,1725805925856,-526.06582474,0.00055342,120]
[337550013,1725805925866,-500.0,0.00055342,120]
[337550014,1725805925876,-1279.78,0.00055342,120]
[337550015,1725805925888,-534.03,0.00055342,120]
[337550016,1725805925899,-500.0,0.00055342,120]
[337550017,1725805925911,-1024.51,0.00055342,120]
[337550018,1725805925921,-500.0,0.00055342,120]
[337550019,1725805925932,-1275.45,0.00055342,120]
[337550020,1725805925942,-500.0,0.00055342,120]
[337550021,1725805925953,-2254.71,0.00055342,120]
[337550022,1725805925962,-500.0,0.00055342,120]
[337550023,1725805925972,-3406.69,0.00055342,120]
[337550024,1725805925982,-1262.14,0.00055342,120]
[337550025,1725805925991,-500.0,0.00055342,120]
[337550026,1725805926002,-500.0,0.00055342,120]
[337550027,1725805926011,-582.4,0.00055342,120]
[337550028,1725805926021,-500.0,0.00055342,120]
[337550029,1725805926031,-500.0,0.00055342,120]
[337550030,1725805926041,-500.0,0.00055342,30]
[337550031,1725805926050,-14687.42,0.00055342,120]
[337550032,1725805926059,-500.0,0.00055342,120]
[337550033,1725805926069,-500.0,0.00055342,120]
[337550034,1725805926079,-500.0,0.00055342,120]
[337550035,1725805926090,-500.0,0.00055342,120]
[337550036,1725805926099,-500.0,0.00055342,120]
[337550037,1725805926109,-500.0,0.00055342,120]
[337550038,1725805926119,-500.0,0.00055342,120]
[337550039,1725805926130,-5272.46,0.00055342,120]
[337550040,1725805926140,-500.0,0.00055342,120]
[337550041,1725805926149,-500.0,0.00055342,120]
[337550042,1725805926160,-504.73,0.00055342,120]
[337550043,1725805926170,-1106.81,0.00055342,120]
[337550044,1725805926180,-2811.07,0.00055342,120]
[337550045,1725805926190,-2345.52,0.00055342,120]
[337550046,1725805926200,-2986.05,0.00055342,120]
[337550047,1725805926210,-988.28,0.00055342,120]
[337550048,1725805926219,-5000.0,0.00055342,120]
[337550049,1725805926229,-503.43723871,0.00055342,120]
[337550050,1725805926239,-500.0,0.00055342,120]
[337550051,1725805926248,-500.0,0.00055342,120]
[337550052,1725805926258,-774.97,0.00055342,120]
[337550053,1725805926268,-2940.53,0.00055342,120]
[337550054,1725805926277,-2486.72,0.00055342,120]
[337550055,1725805926286,-500.0,0.00055342,120]
[337550056,1725805926296,-3307.1,0.00055342,120]
[337550057,1725805926306,-4017.77,0.00055342,120]
[337550058,1725805926315,-548.39,0.00055342,120]
[337550059,1725805926324,-2054.2,0.00055342,120]
[337550060,1725805926334,-3267.98,0.00055342,120]
[337550061,1725805926344,-1134.8,0.00055342,120]
[337550062,1725805926354,-4690.76,0.00055342,120]
[337550063,1725805926364,-666.78,0.00055342,120]
[337550064,1725805926374,-500.0,0.00055342,120]
[337550065,1725805926383,-950.66,0.00055342,120]
[337550066,1725805926394,-500.0,0.00055342,120]
[337550067,1725805926404,-876.05,0.00055342,120]
[337550068,1725805926413,-5751.99,0.00055342,120]
[337550069,1725805926423,-500.0,0.00055342,120]
[337550070,1725805926433,-500.0,0.00055342,120]
[337550071,1725805926443,-529.32,0.00055479,87]
[337550072,1725805926452,-151.0,0.00055644,120]
[337550073,1725805926461,-800.0,0.0005579,120]
[337550074,1725805926471,-1500.0,0.00055826,120]
[337550075,1725805926481,-150.0,0.00056,120]
[337550076,1725805926491,-529.32,0.00056164,90]
[337550077,1725805926500,-500.0,0.00056193,120]
[337550078,1725805926509,-500.0,0.00056438,120]
[337550079,1725805926519,-500.0,0.00056438,120]
[337550080,1725805926528,-500.0,0.00056438,120]
[337550081,1725805926538,-500.0,0.00056438,120]
[337550082,1725805926547,-500.0,0.00056438,120]
[337550083,1725805926556,-500.0,0.00056438,120]
[337550084,1725805926566,-500.0,0.00056438,120]
[337550085,1725805926576,-500.0,0.00056438,120]
[337550086,1725805926586,-500.0,0.00056438,120]
[337550087,1725805926595,-500.0,0.00056438,120]
[337550088,1725805926606,-500.0,0.00056438,120]
[337550089,1725805926616,-500.0,0.00056438,120]
[337550090,1725805926628,-673.59,0.00056438,120]
[337550091,1725805926638,-911.08,0.00056438,120]
[337550092,1725805926649,-500.0,0.00056438,120]
[337550093,1725805926659,-500.0,0.00056438,120]
[337550094,1725805926669,-500.0,0.00056438,120]
[337550095,1725805926680,-629.21,0.00056438,120]
[337550096,1725805926690,-647.52,0.00056438,120]
[337550097,1725805926700,-486.86907435,0.00056438,120]
[337550098,1725805926709,-883.64,0.00056438,120]
[337550099,1725805926719,-500.0,0.00056438,120]
[337550100,1725805926729,-500.0,0.00056438,120]
[337550101,1725805926739,-500.0,0.00056438,120]
[337550102,1725805926752,-500.0,0.00056438,120]
[337550103,1725805926762,-695.11,0.00056438,120]
[337550104,1725805926772,-539.71,0.00056438,120]
[337550105,1725805926781,-1337.0,0.00056438,120]
[337550106,1725805926791,-500.0,0.00056438,120]
[337550107,1725805926801,-1005.43,0.00056438,120]
[337550108,1725805926810,-500.0,0.00056438,120]
[337550109,1725805926820,-519.26,0.00056438,120]
[337550110,1725805926829,-500.0,0.00056438,120]
[337550111,1725805926839,-500.0,0.00056438,120]
[337550112,1725805926849,-500.0,0.00056438,120]
[337550113,1725805926859,-500.0,0.00056438,120]
[337550114,1725805926868,-635.91493719,0.00056438,120]
[337550115,1725805926878,-460.41390831,0.00056438,120]
[337550116,1725805926887,-500.0,0.00056438,120]
[337550117,1725805926896,-777.71,0.00056438,120]
[337550118,1725805926906,-536.44,0.00056438,120]